fUSD/lending_fUSD_20250519
["ID","MTS","AMOUNT","RATE_DAILY","PERIOD"]
[361617660,1747643447154,-400.0,0.00013698,2]
[361617661,1747643447163,-1030.63,0.00013698,2]
[361617662,1747643447173,-7713.47,0.00013698,2]
[361617663,1747643447182,-2498.23,0.00013698,2]
[361617664,1747643447191,-420.0,0.00013698,2]
[361617665,1747643447201,-1349.16,0.00013698,2]
[361617666,1747643447210,-1350.81,0.00013698,2]
[361617667,1747643447219,-420.0,0.00013698,2]
[361617668,1747643447229,-420.0,0.00013698,2]
[361617669,1747643447239,-2825.1,0.00013698,2]
[361617670,1747643447248,-648.53,0.00013698,2]
[361617671,1747643447258,-420.0,0.00013698,2]
[361617672,1747643447267,-11581.33,0.00013698,2]
[361617673,1747643447276,-756.65,0.00013698,2]
[361617674,1747643447285,-984.97,0.00013698,2]
[361617675,1747643447295,-2465.29,0.00013698,2]
[361617676,1747643447305,-1133.67,0.00013698,2]
[361617677,1747643447314,-289.22394018,0.00013698,2]
[361617678,1747643447324,-400.0,0.00013698,2]
[361617679,1747643447333,-862.38,0.00013698,2]
[361617680,1747643447342,-1193.01,0.00013698,2]
[361617681,1747643447353,-1239.6,0.00013698,2]
[361617682,1747643447363,-400.0,0.00013698,2]
[361617683,1747643447372,-380.0,0.00013698,2]
[361617684,1747643447382,-420.0,0.00013698,2]
[361617685,1747643447391,-420.0,0.00013698,2]
[361617686,1747643447401,-161.708294,0.00013698,2]
[361617687,1747643447410,-18646.32,0.00013698,2]
[361617688,1747643447420,-500.0,0.00013698,2]
[361617689,1747643447430,-657.33,0.00013698,2]
[361617690,1747643447439,-1150.83,0.00013698,2]
[361617691,1747643447449,-420.0,0.00013698,2]
[361617692,1747643447458,-1668.02,0.00013698,2]
[361617693,1747643447467,-2231.09,0.00013698,2]
[361617694,1747643447477,-420.0,0.00013698,2]
[361617695,1747643447486,-441.09079016,0.00013698,2]
[361617696,1747643447496,-2625.82,0.00013698,2]
[361617697,1747643447505,-641.28,0.00013698,2]
[361617698,1747643447515,-420.0,0.00013698,2]
[361617699,1747643447524,-401.61679254,0.00013698,2]
[361617700,1747643447533,-538.48,0.00013698,2]
[361617701,1747643447543,-469.01,0.00013698,2]
[361617702,1747643447552,-756.14,0.00013698,2]
[361617703,1747643447562,-400.0,0.00013698,2]
[361617704,1747643447571,-1347.86,0.00013698,2]
[361617705,1747643447580,-734.8,0.00013698,2]
[361617706,1747643447590,-420.0,0.00013698,2]
[361617707,1747643447601,-1058.41,0.00013698,2]
[361617708,1747643447611,-817.29,0.00013698,2]
[361617709,1747643447623,-420.0,0.00013698,2]
[361617710,1747643447633,-1531.98,0.00013698,2]
[361617711,1747643447642,-1692.28,0.00013698,2]
[361617712,1747643447653,-343.1152222,0.00013698,2]
[361617713,1747643447663,-400.0,0.00013698,2]
[361617714,1747643447673,-420.0,0.00013698,2]
[361617715,1747643447682,-765.43,0.00013698,2]
[361617716,1747643447694,-420.0,0.00013698,2]
[361617717,1747643447704,-420.0,0.00013698,2]
[361617718,1747643447714,-1195.91,0.00013698,2]
[361617719,1747643447723,-162.604147,0.00013698,2]
[361617720,1747643447733,-400.0,0.00013698,2]
[361617721,1747643447743,-762.81,0.00013698,2]
[361617722,1747643447753,-2079.89,0.00013698,2]
[361617723,1747643447763,-1313.51,0.00013698,2]
[361617724,1747643447772,-9797.35,0.00013698,2]
[361617725,1747643447782,-543.32,0.00013698,2]
[361617726,1747643447791,-788.64,0.00013698,2]
[361617727,1747643447802,-400.0,0.00013698,2]
[361617728,1747643447811,-2069.87,0.00013698,2]
[361617729,1747643447821,-420.0,0.00013698,2]
[361617730,1747643447831,-4058.07,0.00013698,2]
[361617731,1747643447841,-7292.14,0.00013698,2]
[361617732,1747643447853,-937.48,0.00013698,2]
[361617733,1747643447863,-420.0,0.00013698,2]
[361617734,1747643447872,-420.0,0.00013698,2]
[361617735,1747643447882,-203.10984833,0.00013698,2]
[361617736,1747643447892,-420.0,0.00013698,2]
[361617737,1747643447902,-420.0,0.00013698,2]
[361617738,1747643447911,-3329.7,0.00013698,2]
[361617739,1747643447921,-2026.46,0.00013698,2]
[361617740,1747643447931,-344.8975038,0.00013698,2]
[361617741,1747643447940,-400.0,0.00013698,2]
[361617742,1747643447950,-405.67554366,0.00013698,2]
[361617743,1747643447959,-708.01,0.00013698,2]
[361617744,1747643447969,-16017.93,0.00013698,2]
[361617745,1747643447978,-3864.77,0.00013698,2]
[361617746,1747643447988,-420.0,0.00013698,2]
[361617747,1747643447997,-400.0,0.00013698,2]
[361617748,1747643448007,-400.0,0.00013698,2]
[361617749,1747643448017,-4353.92,0.00013698,2]
[361617750,1747643448026,-780.52,0.00013698,2]
[361617751,1747643448036,-549.09175762,0.00013698,2]
[361617752,1747643448046,-2521.21,0.00013698,2]
[361617753,1747643448055,-420.0,0.00013698,2]
[361617754,1747643448065,-420.0,0.00013698,2]
[361617755,1747643448075,-420.0,0.00013698,2]
[361617756,1747643448085,-400.604644,0.00013698,2]
[361617757,1747643448095,-1620.24,0.00013698,2]
[361617758,1747643448106,-400.0,0.00013698,2]
[361617759,1747643448116,-839.13,0.00013698,2]
[361617760,1747643448126,-1106.34,0.00013698,2]
[361617761,1747643448136,-420.0,0.00013698,2]
[361617762,1747643448146,-420.0,0.00013698,2]
[361617763,1747643448157,-403.58703708,0.00013698,2]
[361617764,1747643448167,-2135.43,0.00013698,2]
[361617765,1747643448177,-2274.93,0.00013698,2]
[361617766,1747643448187,-1244.11,0.00013698,2]
[361617767,1747643448196,-420.0,0.00013698,2]
[361617768,1747643448206,-2623.66,0.00013698,2]
[361617769,1747643448215,-1000.0,0.00013698,2]
[361617770,1747643448225,-420.0,0.00013698,2]
[361617771,1747643448234,-420.0,0.00013698,2]
[361617772,1747643448244,-420.0,0.00013698,2]
[361617773,1747643448253,-869.26,0.00013698,2]
[361617774,1747643448263,-420.0,0.00013698,2]
[361617775,1747643448273,-420.0,0.00013698,2]
[361617776,1747643448282,-420.0,0.00013698,2]
[361617777,1747643448291,-508.46,0.00013698,2]
[361617778,1747643448300,-156.561791,0.00013698,2]
[361617779,1747643448311,-1478.82,0.00013698,2]
[361617780,1747643448321,-656.24,0.00013698,2]
[361617781,1747643448330,-3500.71,0.00013698,2]
[361617782,1747643448340,-2356.33,0.00013698,2]
[361617783,1747643448351,-420.0,0.00013698,2]
[361617784,1747643448361,-400.0,0.00013698,2]
[361617785,1747643448371,-400.0,0.00013698,2]
[361617786,1747643448382,-1238.46,0.00013698,2]
[361617787,1747643448392,-420.0,0.00013698,2]
[361617788,1747643448402,-686.63,0.00013698,2]
[361617789,1747643448412,-622.55,0.00013698,2]
[361617790,1747643448422,-2382.22,0.00013698,2]
[361617791,1747643448432,-563.37,0.00013698,2]
[361617792,1747643448441,-553.49,0.00013698,2]
[361617793,1747643448452,-400.0,0.00013698,2]
[361617794,1747643448462,-2299.21,0.00013698,2]
[361617795,1747643448472,-400.0,0.00013698,2]
[361617796,1747643448482,-529.16,0.00013698,2]
[361617797,1747643448492,-420.0,0.00013698,2]
[361617798,1747643448501,-1992.2,0.00013698,2]
[361617799,1747643448512,-1096.69,0.00013698,2]
[361617800,1747643448522,-720.3,0.00013698,2]
[361617801,1747643448532,-420.0,0.00013698,2]
[361617802,1747643448541,-1834.2,0.00013698,2]
[361617803,1747643448551,-404.13617223,0.00013698,2]
[361617804,1747643448561,-636.78,0.00013698,2]
[361617805,1747643448571,-401.2464519,0.00013698,2]
[361617806,1747643448581,-420.0,0.00013698,2]
[361617807,1747643448590,-648.42,0.00013698,2]
[361617808,1747643448600,-1825.03,0.00013698,2]
[361617809,1747643448611,-623.55,0.00013698,2]
[361617810,1747643448623,-638.81,0.00013698,2]
[361617811,1747643448633,-420.0,0.00013698,2]
[361617812,1747643448643,-420.0,0.00013698,2]
[361617813,1747643448655,-420.0,0.00013698,2]
[361617814,1747643448665,-627.84,0.00013698,2]
[361617815,1747643448675,-400.0,0.00013698,2]
[361617816,1747643448685,-420.0,0.00013698,2]
[361617817,1747643448696,-622.07,0.00013698,2]
[361617818,1747643448706,-380.0,0.00013698,2]
[361617819,1747643448715,-420.0,0.00013698,2]
[361617820,1747643448725,-447.17,0.00013698,2]
[361617821,1747643448735,-420.0,0.00013698,2]
[361617822,1747643448745,-10434.45,0.00013698,2]
[361617823,1747643448754,-4991.96,0.00013698,2]
[361617824,1747643448764,-420.0,0.00013698,2]
[361617825,1747643448774,-502.01937361,0.00013698,2]
[361617826,1747643448784,-10994.75,0.00013698,2]
[361617827,1747643448794,-420.0,0.00013698,2]
[361617828,1747643448804,-420.0,0.00013698,2]
[361617829,1747643448814,-420.0,0.00013698,2]
[361617830,1747643448824,-476.12,0.00013698,2]
[361617831,1747643448834,-948.85,0.00013698,2]
[361617832,1747643448843,-2207.92,0.00013698,2]
[361617833,1747643448854,-420.0,0.00013698,2]
[361617834,1747643448864,-420.0,0.00013698,2]
[361617835,1747643448874,-869.64,0.00013698,2]
[361617836,1747643448884,-1759.43,0.00013698,2]
[361617837,1747643448893,-420.0,0.00013698,2]
[361617838,1747643448903,-420.0,0.00013698,2]
[361617839,1747643448912,-2185.98,0.00013698,2]
[361617840,1747643448922,-7575.88,0.00013698,2]
[361617841,1747643448931,-1925.59,0.00013698,2]
[361617842,1747643448941,-400.0,0.00013698,2]
[361617843,1747643448950,-420.0,0.00013698,2]
[361617844,1747643448960,-506.55,0.00013698,2]
[361617845,1747643448970,-420.0,0.00013698,2]
[361617846,1747643448979,-400.0,0.00013698,2]
[361617847,1747643449057,-720.8,0.00013698,2]
[361617848,1747643449066,-827.08,0.00013698,2]
[361617849,1747643449080,-420.0,0.00013698,2]
[361617850,1747643449089,-1441.86,0.00013698,2]
[361617851,1747643449099,-2245.48,0.00013698,2]
[361617852,1747643449108,-2737.7,0.00013698,2]
[361617853,1747643449117,-1232.57,0.00013698,2]
[361617854,1747643449127,-420.0,0.00013698,2]
[361617855,1747643449136,-420.0,0.00013698,2]
[361617856,1747643449146,-1163.15,0.00013698,2]
[361617857,1747643449156,-467.26,0.00013698,2]
[361617858,1747643449165,-420.0,0.00013698,2]
[361617859,1747643449174,-997.31,0.00013698,2]
[361617860,1747643449184,-1584.71,0.00013698,2]
[361617861,1747643449194,-420.0,0.00013698,2]
[361617862,1747643449203,-380.8253408,0.00013698,2]
[361617863,1747643449212,-420.0,0.00013698,2]
[361617864,1747643449221,-1100.76,0.00013698,2]
[361617865,1747643449231,-4637.94,0.00013698,2]
[361617866,1747643449240,-1418.44,0.00013698,2]
[361617867,1747643449249,-1430.49,0.00013698,2]
[361617868,1747643449259,-400.0,0.00013698,2]
[361617869,1747643449268,-340.0,0.00013698,2]
[361617870,1747643449277,-420.0,0.00013698,2]
[361617871,1747643449287,-2741.02,0.00013698,2]
[361617872,1747643449296,-659.24,0.00013698,2]
[361617873,1747643449306,-3575.19,0.00013698,2]
[361617874,1747643449316,-420.0,0.00013698,2]
[361617875,1747643449326,-404.46098506,0.00013698,2]
[361617876,1747643449336,-991.09,0.00013698,2]
[361617877,1747643449346,-1092.47,0.00013698,2]
[361617878,1747643449357,-401.88512933,0.00013698,2]
[361617879,1747643449367,-360.0,0.00013698,2]
[361617880,1747643449376,-462.47,0.00013698,2]
[361617881,1747643449387,-400.0,0.00013698,2]
[361617882,1747643449397,-622.41,0.00013698,2]
[361617883,1747643449406,-520.24,0.00013698,2]
[361617884,1747643449415,-420.0,0.00013698,2]
[361617885,1747643449425,-420.0,0.00013698,2]
[361617886,1747643449434,-849.22,0.00013698,2]
[361617887,1747643449443,-420.0,0.00013698,2]
[361617888,1747643449453,-499.24,0.00013698,2]
[361617889,1747643449462,-400.0,0.00013698,2]
[361617890,1747643449472,-420.0,0.00013698,2]
[361617891,1747643449482,-420.0,0.00013698,2]
[361617892,1747643449491,-7659.11,0.00013698,2]
[361617893,1747643449500,-380.0,0.00013698,2]
[361617894,1747643449510,-986.82,0.00013698,2]
[361617895,1747643449520,-400.91902702,0.00013698,2]
[361617896,1747643449529,-741.88,0.00013698,2]
[361617897,1747643449538,-420.0,0.00013698,2]
[361617898,1747643449548,-420.0,0.00013698,2]
[361617899,1747643449559,-500.0,0.00013698,2]
[361617900,1747643449569,-500.0,0.00013698,2]
[361617901,1747643449579,-420.0,0.00013698,2]
[361617902,1747643449588,-500.0,0.00013698,2]
[361617903,1747643449598,-500.0,0.00013698,2]
[361617904,1747643449608,-402.11715253,0.00013698,2]
[361617905,1747643449621,-400.58935804,0.00013698,2]
[361617906,1747643449631,-4602.74,0.00013698,2]
[361617907,1747643449642,-400.0,0.00013698,2]
[361617908,1747643449651,-461.29,0.00013698,2]
[361617909,1747643449662,-420.0,0.00013698,2]
[361617910,1747643449672,-401.9694287,0.00013698,2]
[361617911,1747643449681,-480.39,0.00013698,2]
[361617912,1747643449690,-360.0,0.00013698,2]
[361617913,1747643449699,-263.14069619,0.00013698,2]
[361617914,1747643449709,-420.0,0.00013698,2]
[361617915,1747643449718,-961.68,0.00013698,2]
[361617916,1747643449727,-531.51,0.00013698,2]
[361617917,1747643449736,-400.0,0.00013698,2]
[361617918,1747643449745,-1069.87,0.00013698,2]
[361617919,1747643449754,-420.0,0.00013698,2]
[361617920,1747643449764,-1087.56,0.00013698,2]
[361617921,1747643449773,-420.0,0.00013698,2]
[361617922,1747643449783,-704.06,0.00013699,2]
[361617923,1747643449792,-200.0,0.00013699,2]
[361617924,1747643449802,-1500.0,0.00013699,2]
[361617925,1747643449811,-286.47774417,0.00013699,2]
[361617926,1747643449821,-151.0,0.00013699,2]
[361617927,1747643449830,-421.26950349,0.00013699,2]
[361617928,1747643449839,-180.54407292,0.00013699,2]
[361617929,1747643449849,-1693.87,0.000137,2]
[361617930,1747643449859,-482.28020302,0.00013702,2]
[361617931,1747643449868,-1680.0,0.00013704,2]
[361617932,1747643449879,-200.0,0.00013706,2]
[361617933,1747643449888,-482.28020302,0.00013713,2]
[361617934,1747643449898,-159.73477701,0.00013719,2]
[361617935,1747643449907,-482.28020302,0.00013725,2]
[361617936,1747643449918,-462.85420837,0.00013728,2]
[361617937,1747643449928,-286.47774417,0.00013732,2]
[361617938,1747643449937,-482.28020302,0.00013736,2]
[361617939,1747643449947,-482.28020302,0.00013748,2]
[361617940,1747643449956,-168.0053687,0.00013749,2]
[361617941,1747643449967,-482.28020302,0.00013759,2]
[361617942,1747643449976,-7585.32488464,0.00013766,2]
[361617943,1747643449985,-286.47774417,0.00013766,2]
[361617944,1747643449994,-482.28020302,0.00013771,2]
[361617945,1747643450003,-574.65111135,0.00013771,2]
[361617946,1747643450012,-159.73477701,0.00013779,2]
[361617947,1747643450020,-482.28020302,0.00013782,2]
[361617948,1747643450029,-325.98200242,0.0001379,2]
[361617949,1747643450038,-482.28020302,0.00013794,2]
[361617950,1747643450053,-462.85420837,0.00013797,2]
[361617951,1747643450063,-500.0,0.00013799,2]
[361617952,1747643450073,-687.0,0.00013799,2]
[361617953,1747643450081,-7585.32488464,0.00013799,2]
[361617954,1747643450091,-286.47774417,0.00013799,2]
[361617955,1747643450100,-151.0,0.000138,2]
[361617956,1747643450110,-151.0,0.000138,2]
[361617957,1747643450120,-153.725234,0.000138,2]
[361617958,1747643450129,-151.0,0.000138,2]
[361617959,1747643450139,-151.0,0.000138,2]
[361617960,1747643450149,-151.0,0.000138,2]
[361617961,1747643450158,-151.0,0.000138,2]
[361617962,1747643450167,-192.0,0.000138,3]
[361617963,1747643450176,-192.0,0.000138,3]
[361617964,1747643450185,-192.0,0.000138,3]
[361617965,1747643450195,-1382.0,0.000138,2]
[361617966,1747643450204,-198273.20671412,0.000138,2]
[361617967,1747643450213,-482.28020302,0.00013805,2]
[361617968,1747643450222,-6692.18374718,0.00013807,2]
[361617969,1747643450232,-500.0,0.00013807,2]
[361617970,1747643450242,-500.0,0.00013807,2]
[361617971,1747643450251,-500.0,0.00013807,2]
[361617972,1747643450260,-151.0,0.00013808,2]
[361617973,1747643450270,-151.0,0.00013808,2]
[361617974,1747643450279,-151.0,0.00013808,2]
[361617975,1747643450288,-254.422871,0.00013808,2]
[361617976,1747643450297,-186.676358,0.00013808,2]
[361617977,1747643450307,-151.0,0.00013808,2]
[361617978,1747643450317,-151.0,0.00013808,2]
[361617979,1747643450326,-151.0,0.00013808,2]
[361617980,1747643450335,-151.0,0.00013808,2]
[361617981,1747643450345,-420.0,0.00013808,2]
[361617982,1747643450355,-420.0,0.00013808,2]
[361617983,1747643450365,-420.0,0.00013808,2]
[361617984,1747643450374,-420.0,0.00013808,2]
[361617985,1747643450383,-420.0,0.00013808,2]
[361617986,1747643450393,-420.0,0.00013808,2]
[361617987,1747643450402,-420.0,0.00013808,2]
[361617988,1747643450412,-320.0,0.00013808,2]
[361617989,1747643450421,-420.0,0.00013808,2]
[361617990,1747643450430,-420.0,0.00013808,2]
[361617991,1747643450439,-420.0,0.00013808,2]
[361617992,1747643450448,-420.0,0.00013808,2]
[361617993,1747643450458,-472.28,0.00013808,2]
[361617994,1747643450467,-420.0,0.00013808,2]
[361617995,1747643450477,-485.54,0.00013808,2]
[361617996,1747643450486,-420.0,0.00013808,2]
[361617997,1747643450495,-420.0,0.00013808,2]
[361617998,1747643450504,-420.0,0.00013808,2]
[361617999,1747643450513,-420.0,0.00013808,2]
[361618000,1747643450522,-420.0,0.00013808,2]
[361618001,1747643450531,-420.0,0.00013808,2]
[361618002,1747643450540,-420.0,0.00013808,2]
[361618003,1747643450549,-621.99,0.00013808,2]
[361618004,1747643450558,-420.0,0.00013808,2]
[361618005,1747643450567,-420.0,0.00013808,2]
[361618006,1747643450576,-300.0,0.00013808,2]
[361618007,1747643450586,-473.09,0.00013808,2]
[361618008,1747643450595,-420.0,0.00013808,2]
[361618009,1747643450605,-420.0,0.00013808,2]
[361618010,1747643450616,-420.0,0.00013808,2]
[361618011,1747643450625,-736.77,0.00013808,2]
[361618012,1747643450634,-420.0,0.00013808,2]
[361618013,1747643450644,-380.0,0.00013808,2]
[361618014,1747643450655,-420.0,0.00013808,2]
[361618015,1747643450664,-420.0,0.00013808,2]
[361618016,1747643450673,-420.0,0.00013808,2]
[361618017,1747643450683,-584.17,0.00013808,2]
[361618018,1747643450692,-420.0,0.00013808,2]
[361618019,1747643450701,-420.0,0.00013808,2]
[361618020,1747643450710,-420.0,0.00013808,2]
[361618021,1747643450719,-420.0,0.00013808,2]
[361618022,1747643450728,-420.0,0.00013808,2]
[361618023,1747643450738,-420.0,0.00013808,2]
[361618024,1747643450747,-420.0,0.00013808,2]
[361618025,1747643450757,-420.0,0.00013808,2]
[361618026,1747643450766,-420.0,0.00013808,2]
[361618027,1747643450775,-420.0,0.00013808,2]
[361618028,1747643450784,-420.0,0.00013808,2]
[361618029,1747643450793,-203.96365678,0.00013808,2]
[361618030,1747643450802,-420.0,0.00013808,2]
[361618031,1747643450811,-420.0,0.00013808,2]
[361618032,1747643450821,-420.0,0.00013808,2]
[361618033,1747643450830,-420.0,0.00013808,2]
[361618034,1747643450839,-420.0,0.00013808,2]
[361618035,1747643450849,-420.0,0.00013808,2]
[361618036,1747643450858,-400.0,0.00013808,2]
[361618037,1747643450867,-420.0,0.00013808,2]
[361618038,1747643450877,-420.0,0.00013808,2]
[361618039,1747643450886,-485.18616464,0.00013808,2]
[361618040,1747643450895,-605.17,0.00013808,2]
[361618041,1747643450904,-420.0,0.00013808,2]
[361618042,1747643450913,-420.0,0.00013808,2]
[361618043,1747643450923,-420.0,0.00013808,2]
[361618044,1747643450932,-420.0,0.00013808,2]
[361618045,1747643450941,-420.0,0.00013808,2]
[361618046,1747643450951,-420.0,0.00013808,2]
[361618047,1747643450960,-420.0,0.00013808,2]
[361618048,1747643450969,-420.0,0.00013808,2]
[361618049,1747643450978,-420.0,0.00013808,2]
[361618050,1747643450987,-300.0,0.00013808,2]
[361618051,1747643450997,-420.0,0.00013808,2]
[361618052,1747643451006,-420.0,0.00013808,2]
[361618053,1747643451016,-780.64,0.00013808,2]
[361618054,1747643451025,-477.97,0.00013808,2]
[361618055,1747643451035,-152.08758045,0.00013808,2]
[361618056,1747643451044,-420.0,0.00013808,2]
[361618057,1747643451053,-420.0,0.00013808,2]
[361618058,1747643451062,-575.25,0.00013808,2]
[361618059,1747643451071,-420.0,0.00013808,2]
[361618060,1747643451079,-420.0,0.00013808,2]
[361618061,1747643451088,-696.65,0.00013808,2]
[361618062,1747643451097,-420.0,0.00013808,2]
[361618063,1747643451106,-420.0,0.00013808,2]
[361618064,1747643451116,-420.0,0.00013808,2]
[361618065,1747643451126,-420.0,0.00013808,2]
[361618066,1747643451135,-420.0,0.00013808,2]
[361618067,1747643451144,-383.13578141,0.00013808,2]
[361618068,1747643451155,-420.0,0.00013808,2]
[361618069,1747643451165,-420.0,0.00013808,2]
[361618070,1747643451174,-420.0,0.00013808,2]
[361618071,1747643451185,-420.0,0.00013808,2]
[361618072,1747643451194,-380.0,0.00013808,2]
[361618073,1747643451203,-509.81,0.00013808,2]
[361618074,1747643451213,-222.36153242,0.00013808,2]
[361618075,1747643451223,-706.23,0.00013808,2]
[361618076,1747643451231,-420.0,0.00013808,2]
[361618077,1747643451240,-470.67,0.00013808,2]
[361618078,1747643451249,-420.0,0.00013808,2]
[361618079,1747643451258,-507.32,0.00013808,2]
[361618080,1747643451268,-567.98,0.00013808,2]
[361618081,1747643451277,-420.0,0.00013808,2]
[361618082,1747643451285,-380.0,0.00013808,2]
[361618083,1747643451295,-380.0,0.00013808,2]
[361618084,1747643451304,-420.0,0.00013808,2]
[361618085,1747643451312,-420.0,0.00013808,2]
[361618086,1747643451322,-151.0,0.00013808,2]
[361618087,1747643451331,-420.0,0.00013808,2]
[361618088,1747643451339,-316.0008729,0.00013808,2]
[361618089,1747643451349,-743.43,0.00013808,2]
[361618090,1747643451358,-420.0,0.00013808,2]
[361618091,1747643451367,-420.0,0.00013808,2]
[361618092,1747643451376,-420.0,0.00013808,2]
[361618093,1747643451385,-239.72,0.00013808,2]
[361618094,1747643451393,-1260.42,0.00013808,2]
[361618095,1747643451402,-728.29,0.00013808,2]
[361618096,1747643451411,-151.0,0.00013808,2]
[361618097,1747643451421,-300.0,0.00013808,2]
[361618098,1747643451429,-420.0,0.00013808,2]
[361618099,1747643451439,-626.94,0.00013808,2]
[361618100,1747643451447,-380.0,0.00013808,2]
[361618101,1747643451456,-420.0,0.00013808,2]
[361618102,1747643451465,-420.0,0.00013808,2]
[361618103,1747643451474,-471.72,0.00013808,2]
[361618104,1747643451483,-582.2,0.00013808,2]
[361618105,1747643451493,-526.73,0.00013808,2]
[361618106,1747643451502,-420.0,0.00013808,2]
[361618107,1747643451511,-420.0,0.00013808,2]
[361618108,1747643451520,-420.0,0.00013808,2]
[361618109,1747643451530,-579.93,0.00013808,2]
[361618110,1747643451539,-543.49,0.00013808,2]
[361618111,1747643451548,-420.0,0.00013808,2]
[361618112,1747643451557,-320.0,0.00013808,2]
[361618113,1747643451565,-676.39,0.00013808,2]
[361618114,1747643451575,-420.0,0.00013808,2]
[361618115,1747643451584,-420.0,0.00013808,2]
[361618116,1747643451593,-420.0,0.00013808,2]
[361618117,1747643451603,-420.0,0.00013808,2]
[361618118,1747643451614,-420.0,0.00013808,2]
[361618119,1747643451626,-420.0,0.00013808,2]
[361618120,1747643451634,-715.2,0.00013808,2]
[361618121,1747643451643,-400.0,0.00013808,2]
[361618122,1747643451654,-420.0,0.00013808,2]
[361618123,1747643451664,-420.0,0.00013808,2]
[361618124,1747643451674,-420.49971916,0.00013808,2]
[361618125,1747643451684,-420.0,0.00013808,2]
[361618126,1747643451694,-643.95,0.00013808,2]
[361618127,1747643451703,-420.0,0.00013808,2]
[361618128,1747643451712,-418.879678,0.00013808,2]
[361618129,1747643451721,-426.5,0.00013808,2]
[361618130,1747643451731,-596.42,0.00013808,2]
[361618131,1747643451740,-676.22,0.00013808,2]
[361618132,1747643451749,-418.879678,0.00013808,2]
[361618133,1747643451758,-1119.7,0.00013808,2]
[361618134,1747643451768,-740.82,0.00013808,2]
[361618135,1747643451777,-441.48,0.00013808,2]
[361618136,1747643451787,-420.0,0.00013808,2]
[361618137,1747643451797,-448.37,0.00013808,2]
[361618138,1747643451806,-459.85,0.00013808,2]
[361618139,1747643451815,-919.67,0.00013808,2]
[361618140,1747643451825,-501.65,0.00013808,2]
[361618141,1747643451834,-420.0,0.00013808,2]
[361618142,1747643451843,-420.0,0.00013808,2]
[361618143,1747643451853,-420.0,0.00013808,2]
[361618144,1747643451862,-521.57,0.00013808,2]
[361618145,1747643451871,-442.52,0.00013808,2]
[361618146,1747643451881,-954.78,0.00013808,2]
[361618147,1747643451890,-184.348196,0.00013808,2]
[361618148,1747643451899,-420.0,0.00013808,2]
[361618149,1747643451908,-436.4,0.00013808,2]
[361618150,1747643451917,-1968.24,0.00013808,2]
[361618151,1747643451926,-420.0,0.00013808,2]
[361618152,1747643451935,-420.0,0.00013808,2]
[361618153,1747643451944,-428.04,0.00013808,2]
[361618154,1747643451954,-521.1,0.00013808,2]
[361618155,1747643451964,-775.39,0.00013808,2]
[361618156,1747643451973,-2042.259457,0.00013808,2]
[361618157,1747643451982,-420.0,0.00013808,2]
[361618158,1747643451991,-1147.18,0.00013808,2]
[361618159,1747643452000,-715.34,0.00013808,2]